fUST/lending_fUST_20250524
["ID","MTS","AMOUNT","RATE_DAILY","PERIOD"]
[362171191,1748053849192,-430.0,0.00023145,3]
[362171192,1748053849202,-430.0,0.00023145,3]
[362171193,1748053849213,-599.0,0.00023145,3]
[362171194,1748053849224,-430.0,0.00023145,3]
[362171195,1748053849234,-6364.81,0.00023145,3]
[362171196,1748053849245,-430.0,0.00023145,3]
[362171197,1748053849256,-430.0,0.00023145,3]
[362171198,1748053849266,-5448.1,0.00023145,3]
[362171199,1748053849276,-455.86,0.00023145,3]
[362171200,1748053849287,-2582.52,0.00023145,3]
[362171201,1748053849298,-430.0,0.00023145,3]
[362171202,1748053849309,-430.0,0.00023145,3]
[362171203,1748053849319,-3080.48,0.00023145,3]
[362171204,1748053849330,-430.0,0.00023145,3]
[362171205,1748053849340,-1475.83,0.00023145,3]
[362171206,1748053849352,-430.0,0.00023146,3]
[362171207,1748053849362,-430.0,0.00023146,3]
[362171208,1748053849372,-430.0,0.00023146,3]
[362171209,1748053849382,-314.61239117,0.00023146,3]
[362171210,1748053849392,-430.0,0.00023146,3]
[362171211,1748053849402,-445.61,0.00023146,3]
[362171212,1748053849412,-430.0,0.00023146,3]
[362171213,1748053849423,-430.0,0.00023146,3]
[362171214,1748053849433,-430.0,0.00023146,3]
[362171215,1748053849445,-430.0,0.00023146,3]
[362171216,1748053849456,-1274.33,0.00023146,3]
[362171217,1748053849467,-430.0,0.00023146,3]
[362171218,1748053849478,-430.0,0.00023146,3]
[362171219,1748053849488,-430.0,0.00023146,3]
[362171220,1748053849499,-430.0,0.00023146,3]
[362171221,1748053849509,-2945.51,0.00023146,3]
[362171222,1748053849519,-430.0,0.00023146,3]
[362171223,1748053849530,-430.0,0.00023146,3]
[362171224,1748053849540,-182.66471931,0.00023146,3]
[362171225,1748053849551,-431.16,0.00023146,3]
[362171226,1748053849561,-536.9,0.00023146,3]
[362171227,1748053849571,-430.0,0.00023147,2]
[362171228,1748053849582,-430.0,0.00023147,2]
[362171229,1748053849592,-430.0,0.00023147,2]
[362171230,1748053849604,-430.0,0.00023147,2]
[362171231,1748053849615,-430.0,0.00023147,2]
[362171232,1748053849627,-430.0,0.00023147,2]
[362171233,1748053849638,-430.0,0.00023147,2]
[362171234,1748053849649,-369.91648483,0.00023147,2]
[362171235,1748053849661,-430.0,0.00023147,2]
[362171236,1748053849682,-430.0,0.00023147,2]
[362171237,1748053849693,-430.0,0.00023147,2]
[362171238,1748053849703,-430.0,0.00023147,3]
[362171239,1748053849713,-430.0,0.00023147,3]
[362171240,1748053849724,-430.0,0.00023147,3]
[362171241,1748053849734,-576.31,0.00023147,3]
[362171242,1748053849744,-4263.55,0.00023147,3]
[362171243,1748053849753,-459.81,0.00023147,3]
[362171244,1748053849763,-430.0,0.00023147,3]
[362171245,1748053849773,-626.68,0.00023147,3]
[362171246,1748053849782,-430.0,0.00023147,3]
[362171247,1748053849791,-430.0,0.00023147,3]
[362171248,1748053849801,-471.22,0.00023147,2]
[362171249,1748053849810,-540.81,0.00023147,3]
[362171250,1748053849820,-430.0,0.00023147,3]
[362171251,1748053849830,-491.94,0.00023147,3]
[362171252,1748053849839,-430.0,0.00023147,3]
[362171253,1748053849849,-2956.08,0.00023147,3]
[362171254,1748053849859,-430.0,0.00023147,3]
[362171255,1748053849868,-876.96,0.00023147,3]
[362171256,1748053849879,-430.0,0.00023148,2]
[362171257,1748053849891,-430.0,0.00023148,2]
[362171258,1748053849901,-430.0,0.00023148,3]
[362171259,1748053849911,-430.0,0.00023148,3]
[362171260,1748053849921,-250.13108098,0.00023148,3]
[362171261,1748053849933,-305.49968252,0.00023148,3]
[362171262,1748053849943,-244.74546782,0.00023281,2]
[362171263,1748053849953,-5360.37,0.00023287,2]
[362171264,1748053849963,-1049.71206232,0.00023321,2]
[362171265,1748053849973,-500.0,0.00023418,2]
[362171266,1748053849982,-376.67151931,0.00023418,2]
[362171267,1748053849992,-500.0,0.00023418,2]
[362171268,1748053850002,-550.34510077,0.00023418,2]
[362171269,1748053850012,-500.0,0.00023418,2]
[362171270,1748053850023,-262.27947503,0.00023418,2]
[362171271,1748053850033,-4098.26,0.00023419,3]
[362171272,1748053850042,-430.0,0.00023419,3]
[362171273,1748053850052,-430.0,0.00023419,3]
[362171274,1748053850063,-599.0,0.00023419,3]
[362171275,1748053850073,-430.0,0.00023419,3]
[362171276,1748053850083,-6364.81,0.00023419,3]
[362171277,1748053850093,-430.0,0.00023419,3]
[362171278,1748053850102,-430.0,0.00023419,3]
[362171279,1748053850111,-5448.1,0.00023419,3]
[362171280,1748053850120,-455.86,0.00023419,3]
[362171281,1748053850130,-2582.52,0.00023419,3]
[362171282,1748053850140,-430.0,0.00023419,3]
[362171283,1748053850150,-430.0,0.00023419,3]
[362171284,1748053850160,-3080.48,0.00023419,3]
[362171285,1748053850170,-430.0,0.00023419,3]
[362171286,1748053850180,-1475.83,0.00023419,3]
[362171287,1748053850191,-430.0,0.0002342,3]
[362171288,1748053850200,-430.0,0.0002342,3]
[362171289,1748053850211,-430.0,0.0002342,3]
[362171290,1748053850220,-430.0,0.0002342,3]
[362171291,1748053850230,-445.61,0.0002342,3]
[362171292,1748053850239,-430.0,0.0002342,3]
[362171293,1748053850250,-430.0,0.0002342,3]
[362171294,1748053850261,-430.0,0.0002342,3]
[362171295,1748053850271,-430.0,0.0002342,3]
[362171296,1748053850281,-1274.33,0.0002342,3]
[362171297,1748053850291,-430.0,0.0002342,3]
[362171298,1748053850300,-430.0,0.0002342,3]
[362171299,1748053850310,-430.0,0.0002342,3]
[362171300,1748053850320,-430.0,0.0002342,3]
[362171301,1748053850330,-2945.51,0.0002342,3]
[362171302,1748053850339,-430.0,0.0002342,3]
[362171303,1748053850349,-430.0,0.0002342,3]
[362171304,1748053850359,-431.16,0.0002342,3]
[362171305,1748053850369,-536.9,0.0002342,3]
[362171306,1748053850379,-430.0,0.00023421,2]
[362171307,1748053850388,-430.0,0.00023421,2]
[362171308,1748053850399,-430.0,0.00023421,2]
[362171309,1748053850409,-430.0,0.00023421,2]
[362171310,1748053850418,-261.42046956,0.00023421,2]
[362171311,1748053850429,-430.0,0.00023421,2]
[362171312,1748053850439,-430.0,0.00023421,2]
[362171313,1748053850448,-430.0,0.00023421,2]
[362171314,1748053850458,-430.0,0.00023421,2]
[362171315,1748053850468,-430.0,0.00023421,2]
[362171316,1748053850477,-430.0,0.00023421,3]
[362171317,1748053850487,-430.0,0.00023421,3]
[362171318,1748053850497,-430.0,0.00023421,3]
[362171319,1748053850507,-576.31,0.00023421,3]
[362171320,1748053850516,-4263.55,0.00023421,3]
[362171321,1748053850526,-459.81,0.00023421,3]
[362171322,1748053850535,-430.0,0.00023421,3]
[362171323,1748053850545,-626.68,0.00023421,3]
[362171324,1748053850554,-430.0,0.00023421,3]
[362171325,1748053850564,-430.0,0.00023421,3]
[362171326,1748053850573,-471.22,0.00023421,2]
[362171327,1748053850583,-540.81,0.00023421,3]
[362171328,1748053850592,-430.0,0.00023421,3]
[362171329,1748053850602,-491.94,0.00023421,3]
[362171330,1748053850611,-430.0,0.00023421,3]
[362171331,1748053850620,-2956.08,0.00023421,3]
[362171332,1748053850629,-430.0,0.00023421,3]
[362171333,1748053850639,-876.96,0.00023421,3]
[362171334,1748053850648,-430.0,0.00023422,2]
[362171335,1748053850658,-430.0,0.00023422,2]
[362171336,1748053850667,-430.0,0.00023422,3]
[362171337,1748053850677,-577.17716099,0.00023422,3]
[362171338,1748053850686,-156.36093561,0.0002348,2]
[362171339,1748053850696,-4098.26,0.00023693,3]
[362171340,1748053850705,-430.0,0.00023693,3]
[362171341,1748053850714,-430.0,0.00023693,3]
[362171342,1748053850723,-599.0,0.00023693,3]
[362171343,1748053850733,-430.0,0.00023693,3]
[362171344,1748053850743,-6364.81,0.00023693,3]
[362171345,1748053850752,-430.0,0.00023693,3]
[362171346,1748053850761,-430.0,0.00023693,3]
[362171347,1748053850771,-5448.1,0.00023693,3]
[362171348,1748053850780,-455.86,0.00023693,3]
[362171349,1748053850790,-2582.52,0.00023693,3]
[362171350,1748053850801,-430.0,0.00023693,3]
[362171351,1748053850811,-430.0,0.00023693,3]
[362171352,1748053850822,-3080.48,0.00023693,3]
[362171353,1748053850831,-430.0,0.00023693,3]
[362171354,1748053850840,-1475.83,0.00023693,3]
[362171355,1748053850850,-430.0,0.00023694,3]
[362171356,1748053850858,-430.0,0.00023694,3]
[362171357,1748053850868,-430.0,0.00023694,3]
[362171358,1748053850877,-430.0,0.00023694,3]
[362171359,1748053850887,-445.61,0.00023694,3]
[362171360,1748053850899,-430.0,0.00023694,3]
[362171361,1748053850908,-430.0,0.00023694,3]
[362171362,1748053850917,-430.0,0.00023694,3]
[362171363,1748053850927,-430.0,0.00023694,3]
[362171364,1748053850937,-1274.33,0.00023694,3]
[362171365,1748053850946,-324.97743604,0.00023694,3]
[362171366,1748053850956,-430.0,0.00023694,3]
[362171367,1748053850967,-430.0,0.00023694,3]
[362171368,1748053850976,-430.0,0.00023694,3]
[362171369,1748053850985,-2945.51,0.00023694,3]
[362171370,1748053850994,-430.0,0.00023694,3]
[362171371,1748053851004,-245.22146804,0.00023694,3]
[362171372,1748053851013,-431.16,0.00023694,3]
[362171373,1748053851023,-536.9,0.00023694,3]
[362171374,1748053851032,-430.0,0.00023695,2]
[362171375,1748053851042,-449.64330014,0.00023695,2]
[362171376,1748053851051,-430.0,0.00023695,2]
[362171377,1748053851061,-430.0,0.00023695,2]
[362171378,1748053851070,-430.0,0.00023695,2]
[362171379,1748053851079,-430.0,0.00023695,2]
[362171380,1748053851089,-430.0,0.00023695,2]
[362171381,1748053851098,-430.0,0.00023695,2]
[362171382,1748053851107,-430.0,0.00023695,2]
[362171383,1748053851117,-430.0,0.00023695,3]
[362171384,1748053851126,-367.19109472,0.00023695,3]
[362171385,1748053851135,-430.0,0.00023695,3]
[362171386,1748053851144,-576.31,0.00023695,3]
[362171387,1748053851153,-4263.55,0.00023695,3]
[362171388,1748053851163,-459.81,0.00023695,3]
[362171389,1748053851172,-430.0,0.00023695,3]
[362171390,1748053851182,-626.68,0.00023695,3]
[362171391,1748053851191,-430.0,0.00023695,3]
[362171392,1748053851200,-430.0,0.00023695,3]
[362171393,1748053851210,-471.22,0.00023695,2]
[362171394,1748053851219,-540.81,0.00023695,3]
[362171395,1748053851228,-167.52838037,0.00023695,3]
[362171396,1748053851237,-491.94,0.00023695,3]
[362171397,1748053851247,-430.0,0.00023695,3]
[362171398,1748053851256,-2956.08,0.00023695,3]
[362171399,1748053851266,-430.0,0.00023695,3]
[362171400,1748053851275,-876.96,0.00023695,3]
[362171401,1748053851285,-194.53700909,0.00023696,2]
[362171402,1748053851295,-430.0,0.00023696,2]
[362171403,1748053851304,-224.12957703,0.00023696,3]
[362171404,1748053851313,-1001.8832971,0.0002378,2]
[362171405,1748053851323,-244.74546782,0.00023787,2]
[362171406,1748053851332,-4098.26,0.00023967,3]
[362171407,1748053851342,-430.0,0.00023967,3]
[362171408,1748053851351,-430.0,0.00023967,3]
[362171409,1748053851360,-599.0,0.00023967,3]
[362171410,1748053851370,-430.0,0.00023967,3]
[362171411,1748053851379,-6364.81,0.00023967,3]
[362171412,1748053851389,-430.0,0.00023967,3]
[362171413,1748053851399,-430.0,0.00023967,3]
[362171414,1748053851408,-5448.1,0.00023967,3]
[362171415,1748053851418,-455.86,0.00023967,3]
[362171416,1748053851429,-2582.52,0.00023967,3]
[362171417,1748053851438,-430.0,0.00023967,3]
[362171418,1748053851448,-430.0,0.00023967,3]
[362171419,1748053851458,-3080.48,0.00023967,3]
[362171420,1748053851468,-430.0,0.00023967,3]
[362171421,1748053851478,-1475.83,0.00023967,3]
[362171422,1748053851488,-430.0,0.00023968,3]
[362171423,1748053851498,-430.0,0.00023968,3]
[362171424,1748053851509,-188.87582668,0.00023968,3]
[362171425,1748053851519,-430.0,0.00023968,3]
[362171426,1748053851529,-445.61,0.00023968,3]
[362171427,1748053851538,-430.0,0.00023968,3]
[362171428,1748053851548,-430.0,0.00023968,3]
[362171429,1748053851558,-430.0,0.00023968,3]
[362171430,1748053851568,-287.27009718,0.00023968,3]
[362171431,1748053851577,-1274.33,0.00023968,3]
[362171432,1748053851587,-430.0,0.00023968,3]
[362171433,1748053851597,-430.0,0.00023968,3]
[362171434,1748053851606,-430.0,0.00023968,3]
[362171435,1748053851616,-2945.51,0.00023968,3]
[362171436,1748053851626,-430.0,0.00023968,3]
[362171437,1748053851635,-431.16,0.00023968,3]
[362171438,1748053851645,-536.9,0.00023968,3]
[362171439,1748053851654,-430.0,0.00023969,2]
[362171440,1748053851664,-430.0,0.00023969,2]
[362171441,1748053851673,-234.48928502,0.00023969,2]
[362171442,1748053851682,-430.0,0.00023969,2]
[362171443,1748053851804,-430.0,0.00023969,2]
[362171444,1748053851816,-430.0,0.00023969,2]
[362171445,1748053851825,-430.0,0.00023969,2]
[362171446,1748053851835,-430.0,0.00023969,2]
[362171447,1748053851846,-430.0,0.00023969,3]
[362171448,1748053851856,-430.0,0.00023969,3]
[362171449,1748053851866,-576.31,0.00023969,3]
[362171450,1748053851876,-4263.55,0.00023969,3]
[362171451,1748053851886,-459.81,0.00023969,3]
[362171452,1748053851900,-430.0,0.00023969,3]
[362171453,1748053851910,-626.68,0.00023969,3]
[362171454,1748053851919,-430.0,0.00023969,3]
[362171455,1748053851931,-430.0,0.00023969,3]
[362171456,1748053851940,-471.22,0.00023969,2]
[362171457,1748053851950,-540.81,0.00023969,3]
[362171458,1748053851960,-491.94,0.00023969,3]
[362171459,1748053851971,-430.0,0.00023969,3]
[362171460,1748053851981,-2956.08,0.00023969,3]
[362171461,1748053851991,-430.0,0.00023969,3]
[362171462,1748053852001,-876.96,0.00023969,3]
[362171463,1748053852010,-430.0,0.0002397,2]
[362171464,1748053852021,-960.0,0.00024132,2]
[362171465,1748053852030,-404.0,0.00024132,2]
[362171466,1748053852039,-151.0,0.00024132,2]
[362171467,1748053852049,-313.244973,0.00024132,7]
[362171468,1748053852059,-313.244973,0.00024132,7]
[362171469,1748053852069,-215.0738,0.0002415,2]
[362171470,1748053852079,-4098.26,0.00024241,3]
[362171471,1748053852088,-430.0,0.00024241,3]
[362171472,1748053852098,-430.0,0.00024241,3]
[362171473,1748053852108,-599.0,0.00024241,3]
[362171474,1748053852119,-397.20797856,0.00024241,3]
[362171475,1748053852128,-6364.81,0.00024241,3]
[362171476,1748053852138,-430.0,0.00024241,3]
[362171477,1748053852148,-430.0,0.00024241,3]
[362171478,1748053852158,-5448.1,0.00024241,3]
[362171479,1748053852167,-455.86,0.00024241,3]
[362171480,1748053852178,-2582.52,0.00024241,3]
[362171481,1748053852188,-430.0,0.00024241,3]
[362171482,1748053852198,-430.0,0.00024241,3]
[362171483,1748053852208,-3080.48,0.00024241,3]
[362171484,1748053852218,-430.0,0.00024241,3]
[362171485,1748053852227,-430.0,0.00024242,3]
[362171486,1748053852237,-430.0,0.00024242,3]
[362171487,1748053852246,-430.0,0.00024242,3]
[362171488,1748053852256,-445.61,0.00024242,3]
[362171489,1748053852266,-430.0,0.00024242,3]
[362171490,1748053852276,-430.0,0.00024242,3]
[362171491,1748053852285,-430.0,0.00024242,3]
[362171492,1748053852295,-1274.33,0.00024242,3]
[362171493,1748053852304,-430.0,0.00024242,3]
[362171494,1748053852314,-430.0,0.00024242,3]
[362171495,1748053852323,-430.0,0.00024242,3]
[362171496,1748053852333,-2945.51,0.00024242,3]
[362171497,1748053852343,-430.0,0.00024242,3]
[362171498,1748053852352,-431.16,0.00024242,3]
[362171499,1748053852362,-536.9,0.00024242,3]
[362171500,1748053852371,-430.0,0.00024243,2]
[362171501,1748053852381,-430.0,0.00024243,2]
[362171502,1748053852391,-430.0,0.00024243,2]
[362171503,1748053852400,-430.0,0.00024243,2]
[362171504,1748053852410,-430.0,0.00024243,2]
[362171505,1748053852419,-430.0,0.00024243,2]
[362171506,1748053852430,-306.23041011,0.00024243,2]
[362171507,1748053852439,-430.0,0.00024243,3]
[362171508,1748053852449,-430.0,0.00024243,3]
[362171509,1748053852458,-576.31,0.00024243,3]
[362171510,1748053852468,-4263.55,0.00024243,3]
[362171511,1748053852479,-459.81,0.00024243,3]
[362171512,1748053852490,-430.0,0.00024243,3]
[362171513,1748053852500,-626.68,0.00024243,3]
[362171514,1748053852509,-430.0,0.00024243,3]
[362171515,1748053852520,-222.33706055,0.00024243,3]
[362171516,1748053852529,-471.22,0.00024243,2]
[362171517,1748053852539,-540.81,0.00024243,3]
[362171518,1748053852549,-491.94,0.00024243,3]
[362171519,1748053852559,-430.0,0.00024243,3]
[362171520,1748053852568,-2956.08,0.00024243,3]
[362171521,1748053852578,-430.0,0.00024243,3]
[362171522,1748053852588,-876.96,0.00024243,3]
[362171523,1748053852597,-571.6,0.00024244,2]
[362171524,1748053852607,-244.74546782,0.00024294,2]
[362171525,1748053852616,-792.649078,0.00024401,2]
[362171526,1748053852626,-4098.26,0.00024515,3]
[362171527,1748053852635,-430.0,0.00024515,3]
[362171528,1748053852645,-295.6812484,0.00024515,3]
[362171529,1748053852655,-599.0,0.00024515,3]
[362171530,1748053852665,-4311.77158198,0.00024515,3]
[362171531,1748053852772,-2053.03841802,0.00024515,3]
[362171532,1748053852782,-304.47809046,0.00024515,3]
[362171534,1748053909540,-1032.8,0.000245,120]
[362171542,1748054605097,-251.90567806,0.00013562,2]
[362171543,1748054609376,-181.0,0.00013562,2]
[362171544,1748054612482,-156.7796826,0.00013562,2]
[362171545,1748054615639,-241.33183892,0.00013562,2]
[362171546,1748054617571,-241.33183892,0.00013562,2]
[362171547,1748054620674,-214.438801,0.00013562,2]
[362171548,1748054623731,-156.7796826,0.00013562,2]
[362171549,1748054625643,-214.438801,0.00013562,2]
[362171550,1748054628948,-152.0,0.00013562,2]
[362171551,1748054630546,-984.0,0.00013562,2]
[362171552,1748054631491,-45.50445009,0.00013562,2]
[362171553,1748054631517,-111.27523251,0.00013699,2]
[362171554,1748054632902,-49.62204449,0.00013699,2]
[362171598,1748055032571,-167.0,0.00016438,3]
[362171600,1748055032582,-211.01939816,0.00020276,2]
[362171602,1748055032592,-265.4214046,0.00020854,2]
[362171603,1748055032603,-351.69899694,0.00021339,2]
[362171604,1748055032613,-342.64365498,0.00021897,2]
[362171605,1748055032623,-300.0,0.00021985,2]
[362171606,1748055032634,-512.24,0.00021985,10]
[362171607,1748055032644,-737.62,0.00021986,10]
[362171608,1748055032655,-614.68,0.00021986,10]
[362171609,1748055032665,-300.0,0.00021994,2]
[362171610,1748055032676,-500.0,0.00021994,2]
[362171612,1748055032686,-500.0,0.00021994,2]
[362171613,1748055032696,-500.0,0.00021994,2]
[362171614,1748055032706,-500.0,0.00021994,2]
[362171615,1748055032716,-500.0,0.00021994,2]
[362171616,1748055032728,-500.0,0.00021994,2]
[362171617,1748055032738,-500.0,0.00021994,2]
[362171618,1748055032748,-500.0,0.00021994,2]
[362171619,1748055032759,-500.0,0.00021994,2]
[362171620,1748055032768,-500.0,0.00021994,2]
[362171621,1748055032778,-500.0,0.00021994,2]
[362171622,1748055032788,-500.0,0.00021994,2]
[362171623,1748055032798,-500.0,0.00021994,2]
[362171624,1748055032808,-500.0,0.00021994,2]
[362171625,1748055032818,-500.0,0.00021994,2]
[362171626,1748055032828,-500.0,0.00021994,2]
[362171627,1748055032838,-500.0,0.00021994,2]
[362171628,1748055032848,-500.0,0.00021994,2]
[362171629,1748055032858,-500.0,0.00021994,2]
[362171630,1748055032868,-500.0,0.00021994,2]
[362171631,1748055032878,-500.0,0.00021994,2]
[362171632,1748055032887,-500.0,0.00021994,2]
[362171633,1748055032897,-500.0,0.00021994,2]
[362171634,1748055032907,-289.40365834,0.00021994,2]
[362171635,1748055032916,-500.0,0.00021994,2]
[362171636,1748055032926,-430.0,0.00021994,3]
[362171637,1748055032935,-430.0,0.00021994,3]
[362171638,1748055032945,-430.0,0.00021994,3]
[362171639,1748055032954,-430.0,0.00021994,3]
[362171640,1748055032965,-482.06,0.00021994,3]
[362171641,1748055032974,-430.0,0.00021994,3]
[362171642,1748055032985,-2803.84,0.00021994,3]
[362171643,1748055032995,-430.0,0.00021994,3]
[362171644,1748055033004,-4059.43,0.00021994,3]
[362171645,1748055033015,-790.66467078,0.00021994,3]
[362171646,1748055033032,-3743.83532922,0.00021994,3]
[362171647,1748055033043,-1829.29,0.00021994,3]
[362171648,1748055033053,-430.0,0.00021994,3]
[362171649,1748055033063,-430.0,0.00021994,3]
[362171650,1748055033073,-2271.59,0.00021994,3]
[362171651,1748055033083,-430.0,0.00021994,3]
[362171652,1748055033093,-430.0,0.00021994,3]
[362171653,1748055033103,-1286.37,0.00021994,3]
[362171654,1748055033113,-430.0,0.00021994,3]
[362171655,1748055033123,-430.0,0.00021994,3]
[362171656,1748055033133,-430.0,0.00021994,3]
[362171657,1748055033145,-430.0,0.00021995,3]
[362171658,1748055033154,-359.53939575,0.00021995,3]
[362171659,1748055033164,-430.0,0.00021995,3]
[362171660,1748055033173,-430.0,0.00021995,3]
[362171661,1748055033183,-430.0,0.00021995,3]
[362171670,1748055033356,-439.37960509,0.00021995,3]
[362171671,1748055033366,-430.0,0.00021995,3]
[362171672,1748055033378,-410.60363345,0.00021995,3]
[362171673,1748055033388,-437.99190724,0.00021995,3]
[362171674,1748055033398,-436.63027694,0.00021995,3]
[362171675,1748055033408,-430.0,0.00021995,3]
[362171676,1748055033418,-561.49896493,0.00021995,3]
[362171677,1748055033428,-437.77432611,0.00021995,3]
[362171678,1748055033437,-448.00682734,0.00021995,3]
[362171679,1748055033447,-434.12544959,0.00021995,3]
[362171680,1748055033456,-212.51988043,0.00021995,3]
[362171681,1748055033467,-436.58985711,0.00021995,3]
[362171682,1748055033478,-449.9729546,0.00021995,3]
[362171683,1748055033488,-430.0,0.00021995,3]
[362171684,1748055033498,-430.0,0.00021995,3]
[362171685,1748055033508,-441.10456723,0.00021995,3]
[362171686,1748055033518,-430.0,0.00021995,3]
[362171687,1748055033528,-430.0,0.00021995,3]
[362171688,1748055033538,-430.0,0.00021995,3]
[362171689,1748055033547,-430.0,0.00021995,3]
[362171690,1748055033557,-434.68770132,0.00021995,3]
[362171691,1748055033567,-430.0,0.00021995,3]
[362171692,1748055033577,-473.80599406,0.00021995,3]
[362171693,1748055033587,-497.16126327,0.00021995,3]
[362171694,1748055033598,-430.0,0.00021995,3]
[362171695,1748055033607,-430.0,0.00021995,3]
[362171696,1748055033618,-490.80057207,0.00021995,3]
[362171697,1748055033628,-430.0,0.00021995,3]
[362171698,1748055033637,-430.0,0.00021995,3]
[362171699,1748055033647,-430.0,0.00021995,3]
[362171700,1748055033657,-430.0,0.00021995,3]
[362171701,1748055033667,-430.0,0.00021995,3]
[362171702,1748055033676,-430.0,0.00021995,3]
[362171703,1748055033686,-430.0,0.00021995,3]
[362171704,1748055033695,-481.65690262,0.00021995,3]
[362171705,1748055033705,-430.0,0.00021995,3]
[362171706,1748055033715,-430.0,0.00021995,3]
[362171707,1748055033725,-430.0,0.00021995,3]
[362171708,1748055033736,-430.0,0.00021995,3]
[362171709,1748055033746,-430.0,0.00021995,3]
[362171710,1748055033755,-430.0,0.00021995,3]
[362171711,1748055033765,-430.0,0.00021995,3]
[362171712,1748055033775,-430.0,0.00021995,3]
[362171713,1748055033784,-430.0,0.00021995,3]
[362171714,1748055033795,-553.42206027,0.00021995,3]
[362171715,1748055033806,-475.98728851,0.00021995,3]
[362171716,1748055033816,-430.0,0.00021995,3]
[362171717,1748055033825,-430.0,0.00021995,3]
[362171718,1748055033836,-430.0,0.00021995,3]
[362171719,1748055033845,-430.0,0.00021995,3]
[362171720,1748055033855,-432.61114613,0.00021995,3]
[362171721,1748055033865,-430.0,0.00021995,3]
[362171722,1748055033875,-430.0,0.00021995,3]
[362171723,1748055033887,-430.0,0.00021995,3]
[362171724,1748055033896,-430.0,0.00021995,3]
[362171725,1748055033906,-430.0,0.00021995,3]
[362171726,1748055033917,-430.0,0.00021995,3]
[362171727,1748055033926,-430.0,0.00021995,3]
[362171728,1748055033936,-430.0,0.00021995,3]
[362171729,1748055033946,-430.0,0.00021995,3]
[362171730,1748055033956,-430.0,0.00021995,3]
[362171731,1748055033966,-430.0,0.00021995,3]
[362171732,1748055033976,-430.0,0.00021995,3]
[362171733,1748055033995,-430.0,0.00021995,3]
[362171734,1748055034010,-430.0,0.00021995,3]
[362171735,1748055034020,-440.0,0.00021995,3]
[362171736,1748055034031,-430.0,0.00021995,3]
[362171737,1748055034043,-430.0,0.00021995,3]
[362171738,1748055034055,-473.32365899,0.00021995,3]
[362171739,1748055034065,-430.0,0.00021995,3]
[362171740,1748055034076,-430.0,0.00021995,3]
[362171741,1748055034086,-430.0,0.00021995,3]
[362171742,1748055034097,-430.0,0.00021995,3]
[362171743,1748055034106,-438.44196695,0.00021995,3]
[362171744,1748055034116,-1188.43,0.00021995,3]
[362171745,1748055034126,-250.89860487,0.00021995,3]
[362171746,1748055034136,-432.66968553,0.00021995,3]
[362171747,1748055034147,-383.94391031,0.00021995,3]
[362171748,1748055034156,-430.0,0.00021995,3]
[362171749,1748055034166,-418.98164815,0.00021995,3]
[362171750,1748055034176,-430.0,0.00021995,3]
[362171751,1748055034186,-430.0,0.00021995,3]
[362171752,1748055034196,-430.0,0.00021995,3]